fUSD/lending_fUSD_20250308
["ID","MTS","AMOUNT","RATE_DAILY","PERIOD"]
[355664717,1741447853098,-1979.99,9.041e-05,2]
[355664718,1741447853110,-500.0,9.041e-05,2]
[355664719,1741447853121,-691.07,9.041e-05,2]
[355664720,1741447853131,-763.86,9.041e-05,2]
[355664721,1741447853141,-2266.43706594,9.041e-05,2]
[355664722,1741447853524,-667.82293406,9.041e-05,2]
[355664723,1741447853535,-5444.79,9.041e-05,2]
[355664724,1741447853544,-3147.4,9.041e-05,2]
[355664725,1741447853553,-529.58,9.041e-05,2]
[355664726,1741447853563,-500.0,9.041e-05,2]
[355664727,1741447853573,-2682.16,9.041e-05,2]
[355664728,1741447853583,-582.37,9.041e-05,2]
[355664729,1741447853593,-2146.06,9.041e-05,2]
[355664730,1741447853603,-5203.26,9.041e-05,2]
[355664731,1741447853612,-657.02,9.041e-05,2]
[355664732,1741447853622,-2427.17,9.041e-05,2]
[355664733,1741447853631,-1639.46,9.041e-05,2]
[355664734,1741447853641,-500.0,9.041e-05,2]
[355664735,1741447853651,-5846.77,9.041e-05,2]
[355664736,1741447853854,-431.94360234,9.041e-05,2]
[355664737,1741447853865,-1283.16,9.041e-05,2]
[355664738,1741447853875,-500.0,9.041e-05,2]
[355664739,1741447853886,-873.39,9.041e-05,2]
[355664740,1741447853896,-1954.89,9.041e-05,2]
[355664741,1741447853906,-1564.44,9.041e-05,2]
[355664742,1741447853916,-2745.16,9.041e-05,2]
[355664743,1741447853926,-10389.05,9.041e-05,2]
[355664744,1741447853936,-1105.35,9.041e-05,2]
[355664745,1741447853947,-5833.86,9.041e-05,2]
[355664746,1741447853956,-500.0,9.041e-05,2]
[355664747,1741447853967,-10907.8,9.041e-05,2]
[355664748,1741447853976,-1647.0,9.041e-05,2]
[355664749,1741447853986,-1396.33,9.041e-05,2]
[355664750,1741447853995,-2714.8,9.041e-05,2]
[355664751,1741447854006,-2775.14,9.041e-05,2]
[355664752,1741447854015,-500.0,9.041e-05,2]
[355664753,1741447854025,-626.27,9.041e-05,2]
[355664754,1741447854035,-1792.96,9.041e-05,2]
[355664755,1741447854044,-2518.98,9.041e-05,2]
[355664756,1741447854054,-654.84,9.041e-05,2]
[355664757,1741447854064,-578.59,9.041e-05,2]
[355664758,1741447854075,-500.0,9.041e-05,2]
[355664759,1741447854084,-500.0,9.041e-05,2]
[355664760,1741447854094,-500.0,9.041e-05,2]
[355664761,1741447854103,-5485.1,9.041e-05,2]
[355664762,1741447854113,-707.92,9.041e-05,2]
[355664763,1741447854123,-1219.5,9.041e-05,2]
[355664764,1741447854132,-500.0,9.041e-05,2]
[355664765,1741447854142,-829.26,9.041e-05,2]
[355664766,1741447854152,-500.0,9.041e-05,2]
[355664767,1741447854162,-584.61,9.041e-05,2]
[355664768,1741447854172,-500.0,9.041e-05,2]
[355664769,1741447854182,-5189.01,9.041e-05,2]
[355664770,1741447854195,-2027.82,9.041e-05,2]
[355664771,1741447854206,-500.0,9.041e-05,2]
[355664772,1741447854216,-500.0,9.041e-05,2]
[355664773,1741447854226,-795.51,9.041e-05,2]
[355664774,1741447854235,-8700.21,9.041e-05,2]
[355664775,1741447854245,-927.77,9.041e-05,2]
[355664776,1741447854255,-26219.57,9.041e-05,2]
[355664777,1741447854265,-500.0,9.041e-05,2]
[355664778,1741447854275,-566.24015486,9.041e-05,2]
[355664779,1741447854285,-2836.01,9.041e-05,2]
[355664780,1741447854295,-500.0,9.041e-05,2]
[355664781,1741447854306,-500.0,9.041e-05,2]
[355664782,1741447854316,-1118.72,9.041e-05,2]
[355664783,1741447854326,-500.0,9.041e-05,2]
[355664784,1741447854337,-855.7,9.041e-05,2]
[355664785,1741447854347,-1379.0,9.126e-05,2]
[355664786,1741447854358,-7224.2166,9.215e-05,2]
[355664787,1741447854367,-1294.9353,9.215e-05,2]
[355664788,1741447854377,-8572.229,9.215e-05,2]
[355664789,1741447854388,-5989.58075774,9.215e-05,2]
[355664790,1741447854400,-2144.51050065,9.215e-05,2]
[355664791,1741447854412,-260.97360524,9.215e-05,2]
[355664792,1741447855216,-500.0,8.219e-05,2]
[355664793,1741447855226,-500.0,8.219e-05,2]
[355664794,1741447855236,-500.0,8.493e-05,2]
[355664795,1741447855246,-500.0,8.767e-05,2]
[355664796,1741447855256,-576.04019804,9.077e-05,2]
[355664797,1741447855266,-2180.63251477,9.215e-05,2]
[355664798,1741447855284,-4000.0,9.215e-05,2]
[355664799,1741447857306,-500.0,8.219e-05,2]
[355664800,1741447857317,-386.3317102,8.219e-05,2]
[355664801,1741447857328,-500.0,8.493e-05,2]
[355664802,1741447857338,-500.0,8.767e-05,2]
[355664803,1741447857348,-500.0,9.041e-05,2]
[355664804,1741447857358,-234.17,9.041e-05,2]
[355664805,1741447857368,-10974.0937216,9.215e-05,2]
[355664806,1741447857379,-28383.7743,9.215e-05,2]
[355664807,1741447857388,-5706.5085,9.215e-05,2]
[355664808,1741447857398,-1000.0,9.247e-05,2]
[355664809,1741447857408,-340.944689,9.315e-05,2]
[355664810,1741447857418,-545.299417,9.315e-05,2]
[355664811,1741447857428,-500.0,9.315e-05,2]
[355664812,1741447857437,-500.0,9.315e-05,2]
[355664813,1741447857449,-500.0,9.315e-05,2]
[355664814,1741447857458,-500.0,9.315e-05,2]
[355664815,1741447857467,-500.0,9.315e-05,2]
[355664816,1741447857477,-500.0,9.315e-05,2]
[355664817,1741447857486,-500.0,9.315e-05,2]
[355664818,1741447857498,-500.0,9.315e-05,2]
[355664819,1741447857509,-500.0,9.315e-05,2]
[355664820,1741447857519,-500.0,9.315e-05,2]
[355664821,1741447857529,-500.0,9.315e-05,2]
[355664822,1741447857538,-500.0,9.315e-05,2]
[355664823,1741447857550,-500.0,9.315e-05,2]
[355664824,1741447857561,-500.0,9.315e-05,2]
[355664825,1741447857570,-500.0,9.315e-05,2]
[355664826,1741447857581,-500.0,9.315e-05,2]
[355664827,1741447857592,-500.0,9.315e-05,2]
[355664828,1741447857601,-500.0,9.315e-05,2]
[355664829,1741447857610,-500.0,9.315e-05,2]
[355664830,1741447857620,-500.0,9.315e-05,2]
[355664831,1741447857629,-500.0,9.315e-05,2]
[355664832,1741447857638,-500.0,9.315e-05,2]
[355664833,1741447857648,-500.0,9.315e-05,2]
[355664834,1741447857657,-500.0,9.315e-05,2]
[355664835,1741447857667,-704.18,9.315e-05,2]
[355664836,1741447857676,-500.0,9.315e-05,2]
[355664837,1741447857686,-500.0,9.315e-05,2]
[355664838,1741447857698,-500.0,9.315e-05,2]
[355664839,1741447857707,-547.35,9.315e-05,2]
[355664840,1741447857716,-500.0,9.315e-05,2]
[355664841,1741447857725,-500.0,9.315e-05,2]
[355664842,1741447857735,-500.0,9.315e-05,2]
[355664843,1741447857744,-638.9,9.315e-05,2]
[355664844,1741447857754,-500.0,9.315e-05,2]
[355664845,1741447857763,-500.0,9.315e-05,2]
[355664846,1741447857773,-784.07,9.315e-05,2]
[355664847,1741447857783,-500.0,9.315e-05,2]
[355664848,1741447857793,-510.73,9.315e-05,2]
[355664849,1741447857802,-500.0,9.315e-05,2]
[355664850,1741447857812,-500.0,9.315e-05,2]
[355664851,1741447857822,-195.39055954,9.315e-05,2]
[355664852,1741447857831,-500.0,9.315e-05,2]
[355664853,1741447857841,-604.29,9.315e-05,2]
[355664854,1741447857850,-718.09,9.315e-05,2]
[355664855,1741447857860,-500.0,9.315e-05,2]
[355664856,1741447857871,-674.09,9.315e-05,2]
[355664857,1741447857881,-504.58,9.315e-05,2]
[355664858,1741447857891,-500.0,9.315e-05,2]
[355664859,1741447857901,-478.5297897,9.315e-05,2]
[355664860,1741447857910,-500.0,9.315e-05,2]
[355664861,1741447857922,-565.93,9.315e-05,2]
[355664862,1741447857932,-500.0,9.315e-05,2]
[355664863,1741447857941,-500.0,9.315e-05,2]
[355664864,1741447857955,-519.69,9.315e-05,2]
[355664865,1741447857965,-500.0,9.315e-05,2]
[355664866,1741447857975,-625.04,9.315e-05,2]
[355664867,1741447857985,-500.0,9.315e-05,2]
[355664868,1741447857995,-500.0,9.315e-05,2]
[355664869,1741447858006,-500.0,9.315e-05,2]
[355664870,1741447858015,-500.0,9.315e-05,2]
[355664871,1741447858025,-500.0,9.315e-05,2]
[355664872,1741447858035,-500.0,9.315e-05,2]
[355664873,1741447858045,-500.0,9.315e-05,2]
[355664874,1741447858056,-500.0,9.315e-05,2]
[355664875,1741447858066,-500.0,9.315e-05,2]
[355664876,1741447858076,-500.0,9.315e-05,2]
[355664877,1741447858087,-313.01731296,9.315e-05,2]
[355664878,1741447858184,-576.04019804,9.163e-05,2]
[355664879,1741447858200,-186.98268704,9.315e-05,2]
[355664880,1741447858211,-500.0,9.315e-05,2]
[355664881,1741447858221,-228.31697568,9.315e-05,2]
[355664882,1741447858231,-500.0,9.315e-05,2]
[355664883,1741447858241,-500.0,9.315e-05,2]
[355664884,1741447858250,-500.0,9.315e-05,2]
[355664885,1741447858260,-502.64,9.315e-05,2]
[355664886,1741447858270,-586.52,9.315e-05,2]
[355664887,1741447858280,-500.0,9.315e-05,2]
[355664888,1741447858289,-539.47,9.315e-05,2]
[355664889,1741447858299,-570.67,9.315e-05,2]
[355664890,1741447858309,-500.0,9.315e-05,2]
[355664891,1741447858319,-500.0,9.315e-05,2]
[355664892,1741447858329,-611.95,9.315e-05,2]
[355664893,1741447858340,-500.0,9.315e-05,2]
[355664894,1741447858350,-500.0,9.315e-05,2]
[355664895,1741447858360,-500.0,9.315e-05,2]
[355664896,1741447858370,-500.0,9.315e-05,2]
[355664897,1741447858381,-500.0,9.315e-05,2]
[355664898,1741447858391,-500.0,9.315e-05,2]
[355664899,1741447858401,-500.0,9.315e-05,2]
[355664900,1741447858411,-500.0,9.315e-05,2]
[355664901,1741447858420,-919.26,9.315e-05,2]
[355664902,1741447858430,-862.02,9.315e-05,2]
[355664903,1741447858440,-500.0,9.315e-05,2]
[355664904,1741447858453,-500.0,9.315e-05,2]
[355664905,1741447858463,-500.0,9.315e-05,2]
[355664906,1741447858473,-700.16,9.315e-05,2]
[355664907,1741447858482,-500.0,9.315e-05,2]
[355664908,1741447858492,-308.73720317,9.315e-05,2]
[355664909,1741447858506,-500.0,9.315e-05,2]
[355664910,1741447858515,-582.02,9.315e-05,2]
[355664911,1741447858525,-500.0,9.315e-05,2]
[355664912,1741447858535,-500.0,9.315e-05,2]
[355664913,1741447858547,-897.28,9.315e-05,2]
[355664914,1741447858557,-717.1,9.315e-05,2]
[355664915,1741447858567,-500.0,9.315e-05,2]
[355664916,1741447858577,-809.92,9.315e-05,2]
[355664917,1741447858589,-747.2,9.315e-05,2]
[355664918,1741447858601,-500.0,9.315e-05,2]
[355664919,1741447858611,-838.43,9.315e-05,2]
[355664920,1741447858621,-500.0,9.315e-05,2]
[355664921,1741447858631,-929.61,9.315e-05,2]
[355664922,1741447858641,-525.33,9.315e-05,2]
[355664923,1741447858650,-671.84990841,9.315e-05,2]
[355664924,1741447858663,-153.46009159,9.315e-05,2]
[355664925,1741447858673,-111.84886722,9.315e-05,2]
[355664926,1741447858689,-630.43113278,9.315e-05,2]
[355664927,1741447858701,-500.0,9.315e-05,2]
[355664928,1741447858711,-500.0,9.315e-05,2]
[355664929,1741447858720,-500.0,9.315e-05,2]
[355664930,1741447858730,-542.56,9.315e-05,2]
[355664931,1741447858740,-793.45,9.315e-05,2]
[355664932,1741447858750,-500.0,9.315e-05,2]
[355664933,1741447858759,-500.0,9.315e-05,2]
[355664934,1741447858769,-346.3034972,9.315e-05,2]
[355664935,1741447858779,-1037.54,9.315e-05,2]
[355664936,1741447858789,-561.69312199,9.315e-05,2]
[355664937,1741447858800,-804.01,9.315e-05,2]
[355664938,1741447858810,-1000.27,9.315e-05,2]
[355664939,1741447858820,-1074.74,9.315e-05,2]
[355664940,1741447858830,-500.0,9.315e-05,2]
[355664941,1741447858841,-500.0,9.315e-05,2]
[355664942,1741447858851,-500.0,9.315e-05,2]
[355664943,1741447858861,-500.0,9.315e-05,2]
[355664944,1741447858871,-500.0,9.315e-05,2]
[355664945,1741447858882,-868.55,9.315e-05,2]
[355664946,1741447858892,-500.0,9.315e-05,2]
[355664947,1741447858902,-500.0,9.315e-05,2]
[355664948,1741447858911,-500.0,9.315e-05,2]
[355664949,1741447858923,-542.38,9.315e-05,2]
[355664950,1741447858932,-500.0,9.315e-05,2]
[355664951,1741447858945,-803.0,9.315e-05,2]
[355664952,1741447858955,-660.4,9.315e-05,2]
[355664953,1741447858965,-500.0,9.315e-05,2]
[355664954,1741447858975,-500.0,9.315e-05,2]
[355664955,1741447858984,-735.53,9.315e-05,2]
[355664956,1741447858994,-500.0,9.315e-05,2]
[355664957,1741447859004,-500.0,9.315e-05,2]
[355664958,1741447859014,-1044.53,9.315e-05,2]
[355664959,1741447859024,-1329.02,9.315e-05,2]
[355664960,1741447859034,-619.86,9.315e-05,2]
[355664961,1741447859044,-60.37209804,9.315e-05,2]
[355664964,1741448642628,500.0,8.219e-05,120]
[355664965,1741448695081,164.8,8.067e-05,2]
[355665004,1741449032003,-423.96,8.091e-05,2]
[355665005,1741449032012,-150.0,8.142e-05,2]
[355665006,1741449032022,-550.0,8.142e-05,2]
[355665007,1741449032031,-150.0,8.192e-05,2]
[355665008,1741449032040,-150.0,8.218e-05,2]
[355665009,1741449032049,-115.69653494,8.218e-05,2]
[355665010,1741449032280,-184.30346506,8.218e-05,2]
[355665011,1741449032290,-500.0,8.219e-05,2]
[355665012,1741449032301,-513.73,8.219e-05,2]
[355665013,1741449032311,-500.0,8.219e-05,2]
[355665014,1741449032320,-512.8,8.219e-05,2]
[355665015,1741449032330,-299.76860021,8.219e-05,2]
[355665016,1741449032342,-200.23139979,8.219e-05,2]
[355665017,1741449032352,-500.0,8.219e-05,2]
[355665018,1741449032361,-500.0,8.219e-05,2]
[355665019,1741449032371,-500.0,8.219e-05,2]
[355665020,1741449032380,-500.0,8.219e-05,2]
[355665022,1741449032389,-500.0,8.219e-05,2]
[355665024,1741449032399,-500.0,8.219e-05,2]
[355665026,1741449032408,-500.0,8.219e-05,2]
[355665028,1741449032418,-500.0,8.219e-05,2]
[355665030,1741449032427,-500.0,8.219e-05,2]
[355665032,1741449032436,-500.0,8.219e-05,2]
[355665034,1741449032445,-500.0,8.219e-05,2]
[355665036,1741449032455,-500.0,8.219e-05,2]
[355665038,1741449032464,-500.0,8.219e-05,2]
[355665040,1741449032474,-500.0,8.219e-05,2]
[355665042,1741449032483,-524.91,8.219e-05,2]
[355665044,1741449032492,-296.40334109,8.219e-05,2]
[355665046,1741449032505,-203.59665891,8.219e-05,2]
[355665048,1741449032514,-407.40334109,8.219e-05,2]
[355665051,1741449032525,-92.59665891,8.219e-05,2]
[355665052,1741449032535,-375.70334109,8.219e-05,2]
[355665086,1741449037901,-124.29665891,8.219e-05,2]
[355665087,1741449037911,-511.42,8.219e-05,2]
[355665088,1741449037923,-500.0,8.219e-05,2]
[355665089,1741449037932,-500.0,8.219e-05,2]
[355665090,1741449037942,-500.0,8.219e-05,2]
[355665091,1741449037951,-500.0,8.219e-05,2]
[355665092,1741449037962,-500.0,8.219e-05,2]
[355665093,1741449037972,-36.92099739,8.219e-05,2]
[355665094,1741449037984,-463.07900261,8.219e-05,2]
[355665095,1741449037993,-18.55099739,8.219e-05,2]
[355665096,1741449038018,-481.44900261,8.219e-05,2]
[355665097,1741449038028,-500.0,8.219e-05,2]
[355665098,1741449038037,-500.0,8.219e-05,2]
[355665099,1741449038046,-500.0,8.219e-05,2]
[355665100,1741449038056,-637.746161,8.219e-05,2]
[355665101,1741449038065,-500.0,8.219e-05,2]
[355665102,1741449038075,-504.0075597,8.219e-05,2]
[355665103,1741449038084,-500.0,8.219e-05,2]
[355665104,1741449038093,-500.0,8.219e-05,2]
[355665105,1741449038103,-500.0,8.219e-05,2]
[355665106,1741449038112,-500.0,8.219e-05,2]
[355665107,1741449038121,-500.0,8.219e-05,2]
[355665108,1741449038130,-406.26900087,8.219e-05,2]
[355665131,1741449040059,-93.73099913,8.219e-05,2]
[355665132,1741449040068,-393.282689,8.219e-05,2]
[355665133,1741449040078,-500.0,8.219e-05,2]
[355665134,1741449040087,-500.0,8.219e-05,2]
[355665135,1741449040096,-500.0,8.219e-05,2]
[355665136,1741449040106,-500.0,8.219e-05,2]
[355665137,1741449040115,-500.0,8.219e-05,2]
[355665138,1741449040124,-500.0,8.219e-05,2]
[355665139,1741449040134,-500.0,8.219e-05,2]
[355665140,1741449040143,-500.0,8.219e-05,2]
[355665141,1741449040153,-500.0,8.219e-05,2]
[355665142,1741449040163,-500.0,8.219e-05,2]
[355665143,1741449040172,-500.0,8.219e-05,2]
[355665144,1741449040181,-500.0,8.219e-05,2]
[355665145,1741449040191,-500.0,8.219e-05,2]
[355665146,1741449040200,-500.0,8.219e-05,2]
[355665147,1741449040210,-500.0,8.219e-05,2]
[355665148,1741449040219,-500.0,8.219e-05,2]
[355665149,1741449040229,-598.25,8.219e-05,2]
[355665150,1741449040238,-500.0,8.219e-05,2]
[355665151,1741449040248,-500.0,8.219e-05,2]
[355665152,1741449040259,-500.0,8.219e-05,2]
[355665153,1741449040269,-611.2,8.219e-05,2]
[355665154,1741449040278,-500.0,8.219e-05,2]
[355665155,1741449040287,-786.33,8.219e-05,2]
[355665156,1741449040297,-500.0,8.219e-05,2]
[355665157,1741449040307,-500.0,8.219e-05,2]
[355665158,1741449040316,-500.0,8.219e-05,2]
[355665159,1741449040325,-500.0,8.219e-05,2]
[355665160,1741449040335,-500.0,8.219e-05,2]
[355665161,1741449040346,-500.0,8.219e-05,2]
[355665162,1741449040359,-500.0,8.219e-05,2]
[355665163,1741449040369,-500.0,8.219e-05,2]
[355665164,1741449040379,-570.31,8.219e-05,2]
[355665165,1741449040389,-801.86,8.219e-05,2]
[355665166,1741449040400,-875.54,8.219e-05,2]
[355665167,1741449040410,-500.0,8.219e-05,2]
[355665168,1741449040422,-563.45,8.219e-05,2]
[355665169,1741449040432,-500.0,8.219e-05,2]
[355665170,1741449040442,-500.0,8.219e-05,2]
[355665171,1741449040451,-500.0,8.219e-05,2]
[355665172,1741449040462,-585.65,8.219e-05,2]
[355665173,1741449040471,-500.0,8.219e-05,2]
[355665174,1741449040482,-507.26164729,8.219e-05,2]
[355665175,1741449040492,-631.96,8.219e-05,2]
[355665176,1741449040503,-828.33,8.219e-05,2]
[355665177,1741449040513,-500.0,8.219e-05,2]
[355665178,1741449040523,-500.0,8.219e-05,2]
[355665179,1741449040533,-554.2,8.219e-05,2]
[355665180,1741449040543,-559.71,8.219e-05,2]
[355665181,1741449040553,-674.8,8.219e-05,2]
[355665182,1741449040563,-200.82135699,8.219e-05,2]
[355665183,1741449040573,-500.0,8.219e-05,2]
[355665184,1741449040584,-500.0,8.219e-05,2]
[355665185,1741449040593,-500.0,8.219e-05,2]
[355665186,1741449040602,-500.0,8.219e-05,2]
[355665187,1741449040612,-500.0,8.219e-05,2]
[355665188,1741449040622,-367.53613977,8.219e-05,2]
[355665189,1741449040633,-500.0,8.219e-05,2]
[355665190,1741449040643,-500.0,8.219e-05,2]
[355665191,1741449040653,-500.0,8.219e-05,2]
[355665192,1741449040663,-500.0,8.219e-05,2]
[355665193,1741449040673,-500.0,8.219e-05,2]
[355665194,1741449040682,-500.0,8.219e-05,2]
[355665195,1741449040692,-697.96,8.219e-05,2]
[355665196,1741449040702,-500.0,8.219e-05,2]
[355665197,1741449040711,-500.0,8.219e-05,2]
[355665198,1741449040721,-511.03,8.219e-05,2]
[355665199,1741449040730,-500.0,8.219e-05,2]
[355665200,1741449040739,-500.0,8.219e-05,2]
[355665201,1741449040748,-500.0,8.219e-05,2]
[355665202,1741449040758,-500.0,8.219e-05,2]
[355665203,1741449040768,-500.0,8.219e-05,2]
[355665204,1741449040778,-602.41,8.219e-05,2]
[355665205,1741449040787,-654.94,8.219e-05,2]
[355665206,1741449040797,-567.16,8.219e-05,2]
[355665207,1741449040806,-608.61,8.219e-05,2]
[355665208,1741449040816,-735.61,8.219e-05,2]
[355665209,1741449040826,-500.0,8.219e-05,2]
[355665210,1741449040836,-500.0,8.219e-05,2]
[355665211,1741449040846,-500.0,8.219e-05,2]
[355665212,1741449040855,-500.0,8.219e-05,2]
[355665213,1741449040866,-622.78,8.219e-05,2]
[355665214,1741449040875,-500.0,8.219e-05,2]
[355665215,1741449040889,-500.0,8.219e-05,2]
[355665216,1741449040899,-842.65,8.219e-05,2]
[355665217,1741449040909,-500.0,8.219e-05,2]
[355665218,1741449040918,-500.0,8.219e-05,2]
[355665219,1741449040929,-716.52,8.219e-05,2]
[355665220,1741449040939,-774.84,8.219e-05,2]
[355665221,1741449040948,-962.59,8.219e-05,2]
[355665222,1741449040958,-500.0,8.219e-05,2]
[355665223,1741449040970,-589.93,8.219e-05,2]
[355665224,1741449040979,-500.0,8.219e-05,2]
[355665225,1741449040990,-500.0,8.219e-05,2]
[355665226,1741449041000,-500.0,8.219e-05,2]
[355665227,1741449041012,-589.43,8.219e-05,2]
[355665228,1741449041021,-500.0,8.219e-05,2]
[355665229,1741449041031,-500.0,8.219e-05,2]
[355665230,1741449041041,-709.03,8.219e-05,2]
[355665231,1741449041051,-500.0,8.219e-05,2]
[355665232,1741449041062,-500.0,8.219e-05,2]
[355665233,1741449041072,-500.0,8.219e-05,2]
[355665234,1741449041082,-623.78,8.219e-05,2]
[355665235,1741449041092,-500.0,8.219e-05,2]
[355665236,1741449041102,-1001.97,8.219e-05,2]
[355665237,1741449041111,-500.0,8.219e-05,2]
[355665238,1741449041120,-500.0,8.219e-05,2]
[355665239,1741449041129,-500.0,8.219e-05,2]
[355665240,1741449041139,-500.0,8.219e-05,2]
[355665241,1741449041148,-500.0,8.219e-05,2]
[355665242,1741449041158,-500.0,8.219e-05,2]
[355665243,1741449041167,-517.79,8.219e-05,2]
[355665244,1741449041177,-500.0,8.219e-05,2]
[355665245,1741449041186,-500.0,8.219e-05,2]
[355665246,1741449041196,-500.0,8.219e-05,2]
[355665247,1741449041205,-500.0,8.219e-05,2]
[355665248,1741449041214,-500.0,8.219e-05,2]
[355665249,1741449041224,-500.0,8.219e-05,2]
[355665250,1741449041233,-500.0,8.219e-05,2]
[355665251,1741449041243,-864.87,8.219e-05,2]
[355665252,1741449041252,-1049.79,8.219e-05,2]
[355665253,1741449041262,-500.0,8.219e-05,2]
[355665254,1741449041271,-859.81,8.219e-05,2]
[355665255,1741449041477,-500.0,8.219e-05,2]
[355665256,1741449041493,-567.04,8.219e-05,2]
[355665257,1741449041503,-500.0,8.219e-05,2]
[355665258,1741449041513,-500.0,8.219e-05,2]
[355665259,1741449041523,-500.0,8.219e-05,2]
[355665260,1741449041533,-860.21,8.219e-05,2]
[355665261,1741449041543,-500.0,8.219e-05,2]
[355665262,1741449041553,-500.0,8.219e-05,2]
[355665263,1741449041562,-500.0,8.219e-05,2]
[355665264,1741449041572,-1201.81,8.219e-05,2]
[355665265,1741449041581,-976.28,8.219e-05,2]
[355665266,1741449041591,-1000.46,8.219e-05,2]
[355665267,1741449041600,-1223.76,8.219e-05,2]
[355665268,1741449041610,-500.0,8.219e-05,2]
[355665269,1741449041619,-500.0,8.219e-05,2]
[355665270,1741449041629,-608.51,8.219e-05,2]
[355665271,1741449041639,-500.0,8.219e-05,2]
[355665272,1741449041648,-500.0,8.219e-05,2]
[355665273,1741449041658,-500.0,8.219e-05,2]
[355665274,1741449041667,-528.52,8.219e-05,2]
[355665275,1741449041677,-500.0,8.219e-05,2]
[355665276,1741449041687,-500.0,8.219e-05,2]
[355665277,1741449041697,-500.0,8.219e-05,2]
[355665278,1741449041707,-214.8851654,8.219e-05,2]
[355665279,1741449041717,-500.0,8.219e-05,2]
[355665280,1741449041726,-972.3,8.219e-05,2]
[355665281,1741449041736,-628.26,8.219e-05,2]
[355665282,1741449041748,-500.0,8.219e-05,2]
[355665283,1741449041758,-676.23,8.219e-05,2]
[355665284,1741449041768,-500.0,8.219e-05,2]
[355665285,1741449041778,-536.09,8.219e-05,2]
[355665286,1741449041788,-923.34,8.219e-05,2]
[355665287,1741449041797,-500.0,8.219e-05,2]
[355665288,1741449041806,-516.34,8.219e-05,2]
[355665289,1741449041816,-1192.68,8.219e-05,2]
[355665290,1741449041826,-500.0,8.219e-05,2]
[355665291,1741449041835,-398.2134504,8.219e-05,2]
[355665292,1741449041845,-500.0,8.219e-05,2]
[355665293,1741449041855,-764.96,8.219e-05,2]
[355665294,1741449041864,-500.0,8.219e-05,2]
[355665295,1741449041874,-500.0,8.219e-05,2]
[355665296,1741449041886,-500.0,8.219e-05,2]
[355665297,1741449041895,-564.81,8.219e-05,2]
[355665298,1741449041905,-500.0,8.219e-05,2]
[355665299,1741449041915,-500.0,8.219e-05,2]
[355665300,1741449041924,-500.0,8.219e-05,2]
[355665301,1741449041934,-1006.07,8.219e-05,2]
[355665302,1741449041944,-565.59,8.219e-05,2]
[355665303,1741449041953,-500.0,8.219e-05,2]
[355665304,1741449041965,-500.0,8.219e-05,2]
[355665305,1741449041975,-500.0,8.219e-05,2]
[355665306,1741449041985,-594.03,8.219e-05,2]
[355665307,1741449041994,-500.0,8.219e-05,2]
[355665308,1741449042004,-9580.58,8.219e-05,2]
[355665309,1741449042013,-500.0,8.219e-05,2]
[355665310,1741449042024,-500.0,8.219e-05,2]
[355665311,1741449042034,-500.0,8.219e-05,2]
[355665312,1741449042044,-930.15,8.219e-05,2]
[355665313,1741449042053,-500.0,8.219e-05,2]
[355665314,1741449042063,-500.0,8.219e-05,2]
[355665315,1741449042072,-1121.78,8.219e-05,2]
[355665316,1741449042081,-1661.91,8.219e-05,2]
[355665317,1741449042090,-3055.95,8.219e-05,2]
[355665318,1741449042100,-500.0,8.219e-05,2]
[355665319,1741449042110,-633.41,8.219e-05,2]
[355665320,1741449042120,-773.96,8.219e-05,2]
[355665321,1741449042130,-594.4,8.219e-05,2]
[355665322,1741449042140,-779.56,8.219e-05,2]
[355665323,1741449042150,-627.02,8.219e-05,2]
[355665324,1741449042159,-500.0,8.219e-05,2]
[355665325,1741449042168,-1209.92,8.219e-05,2]
[355665326,1741449042178,-864.36,8.219e-05,2]
[355665327,1741449042187,-500.0,8.219e-05,2]